[Event "GER-ch Youth U12M 2018"]
[Site "Willingen"]
[Date "2018.05.20"]
[Round "1"]
[White "Bui, Bao Anh Le"]
[Black "Lehmann, Nils"]
[Result "1-0"]
[ECO "C54"]
[WhiteElo "1974"]
[BlackElo "1558"]
[Annotator "NA"]
[PlyCount "121"]
[EventDate "2018.05.19"]
[EventType "swiss"]
[EventCountry "GER"]
[SourceTitle "playchess.com"]
[Source "ChessBase"]
[SourceQuality "1"]
[TimeControl "40/4500+30:900+30"]

1. e4 {[%emt 0:00:00]} e5 {[%emt 0:00:05]} 2. Nf3 {[%emt 0:00:00]} Nc6 {[%emt 0:00:04]} 3. Bc4 {[%emt 0:00:00]} Bc5 {[%emt 0:00:04]} 4. c3 {[%emt 0:00:05]} Nf6 {[%emt 0:00:04]} 5. d3 {[%emt 0:00:04]} d6 {[%emt 0:01:35]} 6. Bb3 {[%emt 0:00:06]} a6 {[%emt 0:00:05]} 7. Nbd2 {[%emt 0:00:05]} Ba7 {[%emt 0:00:06]} 8. h3 {[%emt 0:00:05]} O-O {[%emt 0:02:22]} 9. Nf1 {[%emt 0:00:28]} d5 {[%emt 0:07:45] LiveBook: 194 Games} 10. Qe2 {[%emt 0:00:52] C54: Italienische Partie (Hauptvariante)} h6 {[%emt 0:06:50]} 11. Ng3 {[%emt 0:00:18]} Re8 {[%emt 0:00:44]} 12. O-O {[%emt 0:01:18]} Be6 {[%emt 0:01:34]} 13. Re1 {[%emt 0:08:44]} dxe4 {[%emt 0:02:36]} 14. dxe4 {[%emt 0:00:15]} Bxb3 {[%emt 0:00:09]} 15. axb3 {[%emt 0:00:12]} Qe7 {[%emt 0:02:46]} 16. Nf5 $14 {[%emt 0:01:38]} ({Vorgänger:} 16. Nh4 Qe6 17. b4 Ne7 18. Nhf5 Nxf5 19. Nxf5 Kh7 20. b5 axb5 {0-1 (42) Sebag,M (2488)-Karpov,A (2628) Cap d'Agde 2016}) 16... Qe6 {[%emt 0:00:11]} 17. N3h4 {[%emt 0:03:18]} Kh7 {[%emt 0:05:25]} 18. Qd3 {[%emt 0:22:36]} Ne7 {[%emt 0:02:11]} 19. Nxe7 {[%emt 0:05:03]} Rxe7 {[%emt 0:00:08]} 20. Nf5 {[%emt 0:00:19]} Ree8 {[%emt 0:00:39]} 21. Qg3 {[%emt 0:02:11]} Nh5 {[%emt 0:03:15]} 22. Qh4 {[%emt 0:06:18]} Qg6 {[%emt 0:02:33]} 23. Rd1 {[%emt 0:03:20]} Nf6 {[%emt 0:06:23]} 24. Rd3 {[%emt 0:10:44]} Qh5 {[%emt 0:00:59]} 25. Qxh5 {[%emt 0:17:20]} Nxh5 {[%emt 0:00:07]} 26. Rd7 {[%emt 0:00:29]} Rad8 {[%emt 0:02:10]} 27. Rxf7 {[%emt 0:01:02]} Rd1+ {[%emt 0:00:14]} 28. Kh2 {[%emt 0:00:04]} Bxf2 {[%emt 0:00:02]} 29. g4 {[%emt 0:00:04]} Bg1+ {[%emt 0:00:30]} 30. Kg2 {[%emt 0:00:35]} Nf4+ {[%emt 0:00:31]} 31. Bxf4 {[%emt 0:00:11]} Rxa1 {[%emt 0:00:06]} 32. Rxg7+ {[%emt 0:00:05]} Kh8 {[%emt 0:00:05]} 33. Bxh6 {[%emt 0:00:32]} Bb6 34. Ne7 {[%emt 0:01:22]} Rxe7 {[%emt 0:03:23]} 35. Rxe7 {[%emt 0:00:03]} Rb1 {[%emt 0:00:10]} 36. Bg7+ {[%emt 0:02:11]} Kg8 {[%emt 0:00:11]} 37. Bxe5 {[%emt 0:00:16]} Rxb2+ {[%emt 0:00:05]} 38. Kg3 {[%emt 0:00:27]} Rxb3 {[%emt 0:00:33]} 39. Rd7 {[%emt 0:00:59]} Ba5 {[%emt 0:00:07]} 40. Rd3 {[%emt 0:00:36]} b5 {[%emt 0:15:19]} 41. Rf3 {[%emt 0:15:23]} c5 {[%emt 0:00:52]} 42. g5 {[%emt 0:00:16]} b4 {[%emt 0:00:52]} 43. cxb4 {[%emt 0:00:00]} Rxf3+ {[%emt 0:00:00]} 44. Kxf3 {[%emt 0:00:00]} cxb4 {[%emt 0:00:00]} 45. g6 {[%emt 0:00:00]} b3 {[%emt 0:00:00]} 46. h4 {[%emt 0:00:00]} Bd2 {[%emt 0:00:00]} 47. Bb2 {[%emt 0:00:00]} a5 {[%emt 0:00:00]} 48. Ke2 {[%emt 0:00:00]} Bb4 {[%emt 0:00:00]} 49. h5 {[%emt 0:00:00]} Bf8 {[%emt 0:00:00]} 50. Kd3 {[%emt 0:00:00]} a4 {[%emt 0:00:00]} 51. e5 {[%emt 0:00:00]} a3 {[%emt 0:00:00]} 52. Bd4 {[%emt 0:00:00]} Bh6 {[%emt 0:00:00]} 53. e6 {[%emt 0:01:23]} Kf8 {[%emt 0:00:00]} 54. Bc5+ {[%emt 0:00:36]} Ke8 {[%emt 0:00:00]} 55. Bxa3 {[%emt 0:00:25]} Bg7 {[%emt 0:00:00]} 56. Bd6 {[%emt 0:02:29]} Kd8 {[%emt 0:00:00]} 57. Bf4 {[%emt 0:00:21]} Ke7 {[%emt 0:00:00]} 58. h6 {[%emt 0:00:10]} Bxh6 {[%emt 0:00:00]} 59. Bxh6 {[%emt 0:00:01]} Kxe6 {[%emt 0:00:00]} 60. g7 {[%emt 0:00:04]} Kf7 {[%emt 0:00:29]} 61. Kc3 {[%emt 0:00:03]} 1-0

[Event "GER-ch Youth U12M 2018"]
[Site "Willingen"]
[Date "2018.05.20"]
[Round "1"]
[White "Foerster-Yialamas, Lucas"]
[Black "Wildermuth, Nikolas Karl"]
[Result "1-0"]
[ECO "B28"]
[WhiteElo "1924"]
[BlackElo "1495"]
[Annotator "NA"]
[PlyCount "51"]
[EventDate "2018.05.19"]
[EventType "swiss"]
[EventCountry "GER"]
[SourceTitle "playchess.com"]
[Source "ChessBase"]
[SourceQuality "1"]
[TimeControl "40/4500+30:900+30"]

1. e4 {[%emt 0:00:00]} c5 2. Nf3 a6 {[%emt 0:00:21]} 3. c4 {[%emt 0:00:00]} b6 {[%emt 0:00:08]} 4. Nc3 {[%emt 0:00:00]} Bb7 {[%emt 0:00:18]} 5. d4 {[%emt 0:00:00]} cxd4 {[%emt 0:00:25]} 6. Nxd4 {[%emt 0:00:00]} e6 {[%emt 0:00:25]} 7. Bd3 {[%emt 0:00:33]} Qc7 {[%emt 0:00:09]} 8. O-O {[%emt 0:00:51]} Nf6 {[%emt 0:01:06]} 9. Qe2 {[%emt 0:00:35]} Nc6 {[%emt 0:01:42]} 10. Be3 {[%emt 0:01:15]} h5 {[%emt 0:01:58]} 11. Nxc6 {[%emt 0:03:37]} Bxc6 {[%emt 0:01:39]} 12. Bd4 {[%emt 0:00:37]} Be7 {[%emt 0:07:13]} 13. Bxf6 {[%emt 0:01:13]} gxf6 {[%emt 0:02:07]} 14. f4 {[%emt 0:03:52]} Bc5+ {[%emt 0:00:44]} 15. Kh1 {[%emt 0:00:08]} Ke7 $11 {[%emt 0:01:29]} 16. Nd5+ {[%emt 0:01:41]} Bxd5 {[%emt 0:00:43]} 17. cxd5 {[%emt 0:00:19]} b5 {[%emt 0:02:31]} 18. Rac1 {[%emt 0:01:29]} Qb6 {[%emt 0:02:13]} 19. e5 {[%emt 0:01:56]} d6 {[%emt 0:01:58]} 20. b4 {[%emt 0:01:43]} Bxb4 {[%emt 0:01:47]} 21. exf6+ {[%emt 0:00:02]} Kxf6 {[%emt 0:01:03]} 22. Qb2+ {[%emt 0:00:06]} Ke7 {[%emt 0:00:37]} 23. Qxb4 {[%emt 0:00:09]} Rhc8 {[%emt 0:00:25]} 24. Rc6 {[%emt 0:00:26]} Rxc6 {[%emt 0:00:36]} 25. dxc6 {[%emt 0:00:01]} Qxc6 {[%emt 0:00:22]} 26. Be4 {[%emt 0:00:05]} 1-0

[Event "GER-ch Youth U12M 2018"]
[Site "Willingen"]
[Date "2018.05.20"]
[Round "1"]
[White "Farokhi, Keyvan"]
[Black "Amato, Cristiano"]
[Result "1-0"]
[ECO "A22"]
[WhiteElo "1844"]
[BlackElo "1681"]
[Annotator "NA"]
[PlyCount "149"]
[EventDate "2018.05.19"]
[EventType "swiss"]
[EventCountry "GER"]
[SourceTitle "playchess.com"]
[Source "ChessBase"]
[SourceQuality "1"]
[TimeControl "40/4500+30:900+30"]

1. c4 {[%emt 0:00:00]} e5 {[%emt 0:00:12]} 2. Nc3 {[%emt 0:00:00]} Bb4 {[%emt 0:00:22]} 3. g3 {[%emt 0:00:00]} Nf6 {[%emt 0:01:55]} 4. Bg2 {[%emt 0:00:05]} Bxc3 {[%emt 0:00:44]} 5. bxc3 {[%emt 0:00:20]} c5 {[%emt 0:01:00]} 6. d3 {[%emt 0:02:26]} Nc6 {[%emt 0:01:09]} 7. Nf3 {[%emt 0:02:43]} b6 {[%emt 0:02:11]} (7... O-O $11 {und Schwarz muss sich keine Sorgen machen.}) 8. Nxe5 {[%emt 0:00:55]} Qc7 {[%emt 0:02:42]} 9. Nxc6 {[%emt 0:01:10]} dxc6 {[%emt 0:00:50]} 10. Bf4 {[%emt 0:00:19]} Qd7 {[%emt 0:05:12]} 11. O-O {[%emt 0:03:08]} O-O {[%emt 0:01:45]} 12. d4 {[%emt 0:01:07]} Ba6 {[%emt 0:01:37]} 13. Qa4 {[%emt 0:01:08]} Bb7 {[%emt 0:02:20]} 14. dxc5 {[%emt 0:00:34]} b5 {[%emt 0:03:12]} 15. Qc2 {[%emt 0:03:16]} bxc4 $18 {[%emt 0:01:34]} 16. Rfd1 {[%emt 0:00:17]} Qc8 {[%emt 0:02:03]} 17. Bd6 {[%emt 0:02:19]} Re8 {[%emt 0:03:35]} 18. e4 {[%emt 0:01:29]} Qe6 {[%emt 0:05:50]} 19. Rab1 {[%emt 0:12:08]} Bc8 {[%emt 0:15:22]} 20. e5 {[%emt 0:04:03]} Nd5 {[%emt 0:07:19]} 21. Bxd5 {[%emt 0:01:08]} cxd5 {[%emt 0:00:11]} 22. Qd2 {[%emt 0:00:11]} Qh3 {[%emt 0:02:01]} 23. Qxd5 {[%emt 0:02:35]} Bg4 {[%emt 0:00:56]} 24. Re1 {[%emt 0:01:46]} Be6 {[%emt 0:07:53]} 25. Qg2 {[%emt 0:01:58]} Qxg2+ {[%emt 0:04:38]} 26. Kxg2 {[%emt 0:00:08]} Bd5+ {[%emt 0:00:06]} 27. Kg1 {[%emt 0:01:32]} a6 {[%emt 0:01:06]} 28. Red1 {[%emt 0:02:16]} Bc6 {[%emt 0:03:32]} 29. Rb4 {[%emt 0:01:05]} g6 {[%emt 0:02:14]} 30. Rxc4 {[%emt 0:00:46]} Rec8 {[%emt 0:01:42]} 31. Rb4 {[%emt 0:00:27]} Bb5 {[%emt 0:00:54]} 32. c4 {[%emt 0:00:45]} Bc6 {[%emt 0:00:01]} 33. Rb6 {[%emt 0:00:12]} Kg7 {[%emt 0:00:31]} 34. Rd3 {[%emt 0:00:32]} a5 {[%emt 0:00:08]} 35. f4 {[%emt 0:02:23]} a4 {[%emt 0:01:26]} 36. a3 {[%emt 0:00:08]} Kg8 {[%emt 0:00:26]} 37. Kf2 Kg7 38. Ke3 {[%emt 0:02:44]} Ra7 {[%emt 0:01:55]} 39. g4 {[%emt 0:00:58]} Rb7 {[%emt 0:00:20]} 40. Rxb7 {[%emt 0:00:11]} Bxb7 {[%emt 0:15:07]} 41. g5 {[%emt 0:15:26]} Bc6 {[%emt 0:01:17]} 42. Rd2 {[%emt 0:00:17]} h6 {[%emt 0:01:28]} 43. Be7 {[%emt 0:02:05]} hxg5 {[%emt 0:01:18]} 44. fxg5 {[%emt 0:00:19]} Re8 {[%emt 0:00:00]} 45. Bf6+ {[%emt 0:00:00]} Kf8 {[%emt 0:00:00]} 46. Rd4 {[%emt 0:00:00]} Rc8 {[%emt 0:00:00]} 47. Rd8+ {[%emt 0:00:00]} Rxd8 {[%emt 0:00:00]} 48. Bxd8 {[%emt 0:00:00]} Ke8 {[%emt 0:00:00]} 49. Bb6 {[%emt 0:00:00]} Kd7 {[%emt 0:00:00]} 50. Kf4 {[%emt 0:00:00]} Ke6 {[%emt 0:00:00]} 51. Bc7 {[%emt 0:00:00]} Bb7 {[%emt 0:00:00]} 52. Bd6 {[%emt 0:00:00]} Bc6 {[%emt 0:00:00]} 53. h4 {[%emt 0:00:00]} Bb7 {[%emt 0:00:00]} 54. Kg4 {[%emt 0:00:00]} Bc6 {[%emt 0:00:00]} 55. h5 {[%emt 0:00:00]} gxh5+ {[%emt 0:00:00]} 56. Kxh5 {[%emt 0:00:00]} Bf3+ {[%emt 0:00:00]} 57. Kh6 {[%emt 0:00:00]} Bc6 {[%emt 0:00:00]} 58. g6 {[%emt 0:00:00]} fxg6 {[%emt 0:00:00]} 59. Kxg6 {[%emt 0:00:00]} Be4+ {[%emt 0:00:00]} 60. Kg5 {[%emt 0:00:00]} Bc6 {[%emt 0:00:00]} 61. Kf4 {[%emt 0:00:00]} Kf7 {[%emt 0:00:24]} 62. Ke3 {[%emt 0:00:00]} Ke6 {[%emt 0:00:10]} 63. Kd2 {[%emt 0:00:00]} Kd7 {[%emt 0:00:10]} 64. Kc3 {[%emt 0:00:00]} Ke6 {[%emt 0:02:02]} 65. Kb4 {[%emt 0:00:00]} Kd7 {[%emt 0:00:26]} 66. Ka5 {[%emt 0:00:00]} Ke6 {[%emt 0:00:39]} 67. Kb6 {[%emt 0:00:00]} Be4 {[%emt 0:08:51]} 68. c6 {[%emt 0:00:00]} Bf5 {[%emt 0:01:05]} 69. c7 {[%emt 0:00:00]} Kd7 {[%emt 0:00:15]} 70. Kb7 {[%emt 0:00:00]} Be4+ {[%emt 0:00:21]} 71. Kb8 {[%emt 0:00:00]} Bb7 {[%emt 0:00:14]} 72. Kxb7 {[%emt 0:00:00]} Ke6 {[%emt 0:00:14]} 73. c8=Q+ {[%emt 0:00:00]} Kf7 {[%emt 0:00:34]} 74. Qf8+ {[%emt 0:00:00]} Ke6 {[%emt 0:00:22]} 75. Qf6+ {[%emt 0:00:00] Kd5} 1-0

[Event "GER-ch Youth U12M 2018"]
[Site "Willingen"]
[Date "2018.05.20"]
[Round "1"]
[White "Metzdorf, Matteo"]
[Black "Chassard, Cedric"]
[Result "1-0"]
[ECO "C11"]
[WhiteElo "1832"]
[BlackElo "1590"]
[Annotator "NA"]
[PlyCount "57"]
[EventDate "2018.05.19"]
[EventType "swiss"]
[EventCountry "GER"]
[SourceTitle "playchess.com"]
[Source "ChessBase"]
[SourceQuality "1"]
[TimeControl "40/4500+30:900+30"]

1. e4 {[%emt 0:00:00]} e6 {[%emt 0:00:01]} 2. d4 {[%emt 0:00:00]} d5 {[%emt 0:00:01]} 3. Nc3 {[%emt 0:00:00]} Nf6 {[%emt 0:00:01]} 4. e5 {[%emt 0:00:00]} Nfd7 {[%emt 0:00:02]} 5. f4 {[%emt 0:00:07]} c5 {[%emt 0:00:05]} 6. Nf3 {[%emt 0:00:26]} Nc6 {[%emt 0:00:01]} 7. Be3 {[%emt 0:00:16]} a6 {[%emt 0:00:05]} 8. Be2 {[%emt 0:00:34]} b5 {[%emt 0:00:29]} 9. O-O {[%emt 0:00:49]} Bb7 {[%emt 0:03:24]} 10. Qd2 {[%emt 0:02:50]} Qb6 {[%emt 0:02:35]} 11. Nd1 {[%emt 0:03:26]} cxd4 {[%emt 0:03:04]} 12. Nxd4 {[%emt 0:01:42]} Nxd4 {[%emt 0:00:06]} 13. Bxd4 {[%emt 0:00:07]} Bc5 {[%emt 0:00:05]} 14. c3 {[%emt 0:04:25]} a5 {[%emt 0:03:58]} 15. Kh1 {[%emt 0:10:29]} b4 {[%emt 0:04:04]} 16. f5 {[%emt 0:07:55]} bxc3 {[%emt 0:02:53]} 17. bxc3 {[%emt 0:02:56]} exf5 {[%emt 0:00:58]} 18. Rxf5 {[%emt 0:01:18]} O-O {[%emt 0:00:40]} 19. Bg4 {[%emt 0:09:07]} Bxd4 {[%emt 0:05:13]} 20. cxd4 {[%emt 0:01:21]} Nb8 {[%emt 0:01:18]} 21. Ne3 {[%emt 0:10:09]} Na6 {[%emt 0:03:47]} 22. Raf1 {[%emt 0:02:25]} Nc7 {[%emt 0:00:39]} 23. Qf2 {[%emt 0:04:26]} Qxd4 {[%emt 0:02:28]} 24. Rxf7 {[%emt 0:00:26]} Qb4 {[%emt 0:01:30]} 25. e6 {[%emt 0:01:02]} Ba6 {[%emt 0:03:50]} 26. e7 {[%emt 0:01:58]} Rfe8 {[%emt 0:00:40]} 27. Rf8+ {[%emt 0:00:17]} Rxf8 {[%emt 0:00:07]} 28. Qxf8+ {[%emt 0:00:24]} Rxf8 {[%emt 0:00:04]} 29. Rxf8# 1-0

[Event "GER-ch Youth U12M 2018"]
[Site "Willingen"]
[Date "2018.05.20"]
[Round "1"]
[White "May, Ben-Iven"]
[Black "Hommer, Jeremy"]
[Result "0-1"]
[ECO "A13"]
[WhiteElo "1769"]
[BlackElo "1897"]
[Annotator "NA"]
[PlyCount "86"]
[EventDate "2018.05.19"]
[EventType "swiss"]
[EventCountry "GER"]
[SourceTitle "playchess.com"]
[Source "ChessBase"]
[SourceQuality "1"]
[TimeControl "40/4500+30:900+30"]

1. c4 {[%emt 0:00:00]} e6 {[%emt 0:02:53]} 2. g3 {[%emt 0:00:34]} f5 {[%emt 0:02:04]} 3. Bg2 {[%emt 0:01:25]} Nf6 {[%emt 0:01:17]} 4. Nf3 d5 {[%emt 0:07:22]} 5. b3 {[%emt 0:06:18]} c6 {[%emt 0:02:53]} 6. Ba3 {[%emt 0:03:55]} Bxa3 {[%emt 0:00:22]} 7. Nxa3 {[%emt 0:00:08]} O-O {[%emt 0:00:23]} 8. O-O {[%emt 0:00:11]} Qd6 {[%emt 0:03:51]} 9. Nc2 {[%emt 0:00:19]} Nbd7 {[%emt 0:01:39]} 10. d4 {[%emt 0:03:02]} b6 {[%emt 0:02:06]} 11. Nce1 {[%emt 0:03:53]} Bb7 {[%emt 0:01:26]} 12. Nd3 {[%emt 0:00:17]} Rac8 {[%emt 0:10:50]} 13. Rc1 {[%emt 0:09:05]} c5 {[%emt 0:04:37]} 14. Nde5 {[%emt 0:06:27]} Rfd8 {[%emt 0:06:38]} 15. Re1 {[%emt 0:09:53]} Qe7 {[%emt 0:07:05]} 16. e3 {[%emt 0:02:19]} Nxe5 {[%emt 0:01:17]} 17. Nxe5 {[%emt 0:00:09]} dxc4 {[%emt 0:00:29]} 18. bxc4 {[%emt 0:02:07]} Bxg2 {[%emt 0:00:05]} 19. Kxg2 {[%emt 0:00:08]} Nd7 {[%emt 0:05:40]} 20. Nf3 {[%emt 0:03:49]} e5 {[%emt 0:01:34]} 21. d5 {[%emt 0:00:10]} e4 {[%emt 0:00:11]} 22. Nh4 {[%emt 0:01:51]} Rf8 {[%emt 0:00:34]} 23. Kh1 {[%emt 0:01:14]} Ne5 {[%emt 0:00:42]} 24. Rc3 {[%emt 0:03:27]} Qf6 {[%emt 0:01:36]} 25. Rc2 {[%emt 0:05:10]} Qh6 {[%emt 0:00:12]} 26. f4 {[%emt 0:01:38]} Nd3 {[%emt 0:03:30]} 27. Rf1 {[%emt 0:03:48]} b5 {[%emt 0:00:51]} 28. Ng2 {[%emt 0:03:57]} bxc4 {[%emt 0:00:59]} 29. Ne1 {[%emt 0:01:07]} Qd6 {[%emt 0:00:29]} 30. Rxc4 {[%emt 0:00:40]} Nb2 {[%emt 0:00:35]} 31. Qc2 {[%emt 0:00:14]} Nxc4 {[%emt 0:00:05]} 32. Qxc4 {[%emt 0:00:04]} Rfd8 {[%emt 0:00:30]} 33. Nc2 {[%emt 0:00:27]} Qxd5 {[%emt 0:00:15]} 34. Na3 {[%emt 0:00:45]} Qxc4 {[%emt 0:02:41]} 35. Nxc4 {[%emt 0:00:07]} Kf8 {[%emt 0:02:32]} 36. Kg2 {[%emt 0:00:25]} Ke7 {[%emt 0:00:42]} 37. Kf2 {[%emt 0:00:18]} Ke6 {[%emt 0:00:39]} 38. Ke2 {[%emt 0:00:16]} Rb8 {[%emt 0:00:24]} 39. a3 {[%emt 0:00:07]} Rd3 {[%emt 0:02:35]} 40. Rc1 {[%emt 0:01:08]} Rbb3 {[%emt 0:15:09]} 41. Nd2 {[%emt 0:15:31]} Rxe3+ {[%emt 0:01:01]} 42. Kd1 {[%emt 0:00:15]} Red3 {[%emt 0:00:51]} 43. Rxc5 {[%emt 0:00:12]} e3 {[%emt 0:00:23]} 0-1

[Event "GER-ch Youth U12M 2018"]
[Site "Willingen"]
[Date "2018.05.20"]
[Round "1"]
[White "Bakiev, Diyor"]
[Black "Pikalow, Michael"]
[Result "1/2-1/2"]
[ECO "B22"]
[WhiteElo "1752"]
[BlackElo "1540"]
[Annotator "NA"]
[PlyCount "89"]
[EventDate "2018.05.19"]
[EventType "swiss"]
[EventCountry "GER"]
[SourceTitle "playchess.com"]
[Source "ChessBase"]
[SourceQuality "1"]
[TimeControl "40/4500+30:900+30"]

1. e4 {[%emt 0:00:00]} c5 {[%emt 0:00:01]} 2. c3 {[%emt 0:00:00]} Nf6 {[%emt 0:00:07]} 3. e5 {[%emt 0:00:00]} Nd5 {[%emt 0:00:06]} 4. d4 {[%emt 0:00:00]} cxd4 {[%emt 0:00:22]} 5. Nf3 {[%emt 0:00:04]} e6 {[%emt 0:04:39]} 6. cxd4 {[%emt 0:00:23]} Nc6 7. Bc4 {[%emt 0:02:51]} Nb6 {[%emt 0:01:27]} 8. Bb5 {[%emt 0:00:51]} a6 {[%emt 0:08:21]} 9. Bxc6 {[%emt 0:00:59]} dxc6 {[%emt 0:04:49]} 10. O-O {[%emt 0:00:54]} c5 {[%emt 0:05:35]} 11. dxc5 {[%emt 0:07:54]} Qxd1 {[%emt 0:00:20]} 12. Rxd1 {[%emt 0:00:21]} Bxc5 {[%emt 0:00:12]} 13. Nc3 {[%emt 0:00:50]} O-O {[%emt 0:01:15]} 14. Ne4 {[%emt 0:02:13]} Be7 {[%emt 0:00:06]} 15. b3 {[%emt 0:09:24]} Bd7 {[%emt 0:07:31]} 16. Be3 {[%emt 0:15:55]} Nd5 {[%emt 0:08:16]} 17. Bc5 {[%emt 0:01:36]} Bc6 {[%emt 0:09:13]} 18. Nd4 {[%emt 0:08:44]} Rac8 {[%emt 0:06:17]} 19. Nxc6 {[%emt 0:04:43]} Rxc6 {[%emt 0:00:33]} 20. Bxe7 {[%emt 0:00:09]} Nxe7 {[%emt 0:00:06]} 21. g3 {[%emt 0:02:20]} Nd5 {[%emt 0:02:39]} 22. Nd6 Rc7 23. h4 {[%emt 0:12:29]} h5 {[%emt 0:06:04]} 24. Kh1 {[%emt 0:02:35]} Rd8 {[%emt 0:05:02]} 25. Rac1 {[%emt 0:00:43]} Rdd7 {[%emt 0:00:57]} 26. Ne8 {[%emt 0:00:53]} Rxc1 {[%emt 0:01:26]} 27. Rxc1 {[%emt 0:00:04]} Nb4 {[%emt 0:00:54]} 28. Nd6 {[%emt 0:03:38]} Nxa2 {[%emt 0:02:04]} 29. Rc8+ {[%emt 0:00:06]} Kh7 {[%emt 0:00:05]} 30. Rb8 {[%emt 0:01:13]} b5 {[%emt 0:02:05]} 31. Ra8 {[%emt 0:00:43]} Nb4 {[%emt 0:00:08]} 32. Kg2 {[%emt 0:01:25]} Kg6 {[%emt 0:00:51]} 33. Kf3 {[%emt 0:00:41]} f6 {[%emt 0:03:30]} 34. Ke4 {[%emt 0:01:02]} fxe5 {[%emt 0:00:06]} 35. Kxe5 {[%emt 0:00:23]} Nd3+ {[%emt 0:04:18]} 36. Kxe6 {[%emt 0:03:24]} Nc5+ {[%emt 0:01:15]} 37. Ke5 {[%emt 0:00:51]} Nd3+ {[%emt 0:01:12]} 38. Kd5 {[%emt 0:01:36]} Nxf2 {[%emt 0:00:52]} 39. Ke6 {[%emt 0:00:55]} Rc7 {[%emt 0:01:07]} 40. Rxa6 {[%emt 0:00:40]} Rc3 {[%emt 0:15:48]} 41. Nxb5 {[%emt 0:15:31]} Rxb3 {[%emt 0:00:48]} 42. Ke5+ {[%emt 0:01:15]} Kh7 {[%emt 0:00:00]} 43. Nd4 {[%emt 0:00:00]} Rxg3 {[%emt 0:00:00]} 44. Nf5 {[%emt 0:00:00]} Rg4 {[%emt 0:00:00]} 45. Ra3 1/2-1/2

[Event "GER-ch Youth U12M 2018"]
[Site "Willingen"]
[Date "2018.05.20"]
[Round "1"]
[White "Prieb, Robert"]
[Black "Duduka, Artem"]
[Result "0-1"]
[ECO "D91"]
[WhiteElo "1709"]
[BlackElo "1598"]
[Annotator "NA"]
[PlyCount "140"]
[EventDate "2018.05.19"]
[EventType "swiss"]
[EventCountry "GER"]
[SourceTitle "playchess.com"]
[Source "ChessBase"]
[SourceQuality "1"]
[TimeControl "40/4500+30:900+30"]

1. d4 {[%emt 0:00:00]} Nf6 {[%emt 0:00:24]} 2. Nf3 {[%emt 0:00:13]} g6 {[%emt 0:00:21]} 3. c4 {[%emt 0:00:34]} d5 {[%emt 0:00:19]} 4. Nc3 {[%emt 0:00:59]} Bg7 {[%emt 0:00:56]} 5. Bg5 {[%emt 0:00:57]} Ne4 {[%emt 0:03:14]} 6. Bh4 {[%emt 0:01:34]} Nxc3 {[%emt 0:00:18]} 7. bxc3 {[%emt 0:00:07]} dxc4 {[%emt 0:00:15]} 8. Qa4+ {[%emt 0:01:39]} c6 {[%emt 0:00:56]} 9. Qxc4 {[%emt 0:02:10]} O-O {[%emt 0:01:37]} 10. e4 {[%emt 0:02:08]} Qc7 {[%emt 0:02:51]} 11. Bg3 {[%emt 0:01:50]} Qa5 {[%emt 0:01:04]} 12. Qb4 {[%emt 0:06:49]} Qxb4 {[%emt 0:01:38]} 13. cxb4 {[%emt 0:00:20]} Bg4 {[%emt 0:01:08]} 14. Rd1 {[%emt 0:07:15]} Rd8 {[%emt 0:02:23]} 15. e5 {[%emt 0:05:35]} Bxf3 {[%emt 0:03:54]} 16. gxf3 {[%emt 0:00:17]} e6 {[%emt 0:00:34]} 17. Bh4 {[%emt 0:02:13]} Rd7 {[%emt 0:01:19]} 18. a3 {[%emt 0:03:26]} a5 {[%emt 0:01:39]} 19. b5 {[%emt 0:08:54]} a4 {[%emt 0:04:53]} 20. b6 {[%emt 0:05:34]} Bf8 {[%emt 0:01:41]} 21. Bc4 {[%emt 0:07:45]} Bxa3 {[%emt 0:01:34]} 22. f4 {[%emt 0:00:49]} Bb2 {[%emt 0:02:53]} 23. f5 {[%emt 0:03:10]} Rxd4 {[%emt 0:04:04]} 24. Rxd4 {[%emt 0:02:25]} Bxd4 {[%emt 0:00:18]} 25. fxe6 {[%emt 0:02:02]} fxe6 {[%emt 0:00:57]} 26. Bxe6+ {[%emt 0:01:22]} Kf8 {[%emt 0:00:16]} 27. O-O {[%emt 0:04:48]} Bxe5 {[%emt 0:03:11]} 28. Rd1 {[%emt 0:04:07]} a3 {[%emt 0:07:00]} 29. Rd8+ {[%emt 0:01:25]} Kg7 {[%emt 0:00:35]} 30. Be7 {[%emt 0:02:05]} a2 {[%emt 0:02:55]} 31. Rg8+ {[%emt 0:02:51]} Kh6 {[%emt 0:00:09]} 32. Bf8+ {[%emt 0:00:39]} Kh5 {[%emt 0:00:34]} 33. Bxa2 {[%emt 0:01:42]} Rxa2 {[%emt 0:00:13]} 34. Bg7 {[%emt 0:01:04]} Nd7 {[%emt 0:02:50]} 35. Bxe5 {[%emt 0:00:53]} Nxe5 {[%emt 0:00:14]} 36. Rg7 {[%emt 0:00:24]} Kh6 {[%emt 0:00:51]} 37. Rxb7 {[%emt 0:00:55]} Rb2 {[%emt 0:00:09]} 38. Re7 {[%emt 0:01:06]} Nd3 {[%emt 0:03:28]} 39. b7 {[%emt 0:00:40]} Nxf2 {[%emt 0:01:33]} 40. Re3 {[%emt 0:01:21]} Ng4 {[%emt 0:17:10]} 41. Rc3 {[%emt 0:02:29]} Rxb7 {[%emt 0:00:00]} 42. Rxc6 {[%emt 0:00:31]} Rb1+ {[%emt 0:00:00]} 43. Kg2 {[%emt 0:00:07]} Rb2+ {[%emt 0:00:00]} 44. Kg3 {[%emt 0:00:07]} Nxh2 {[%emt 0:00:00]} 45. Rc1 {[%emt 0:00:09]} Kh5 {[%emt 0:00:00]} 46. Rh1 {[%emt 0:00:48]} Kg5 {[%emt 0:00:00]} 47. Rc1 {[%emt 0:00:48]} h5 {[%emt 0:00:00]} 48. Rc5+ {[%emt 0:00:17]} Kh6 {[%emt 0:00:00]} 49. Rc6 {[%emt 0:01:14]} Ng4 {[%emt 0:00:00]} 50. Kh4 {[%emt 0:01:33]} Rf2 {[%emt 0:00:00]} 51. Ra6 {[%emt 0:00:44]} Rf6 {[%emt 0:00:00]} 52. Ra5 {[%emt 0:00:24]} Rf5 {[%emt 0:00:00]} 53. Ra6 {[%emt 0:00:21]} Nf6 {[%emt 0:00:00]} 54. Rb6 {[%emt 0:00:37]} g5+ {[%emt 0:00:00]} 55. Kg3 {[%emt 0:00:09]} h4+ {[%emt 0:00:00]} 56. Kh3 {[%emt 0:00:22]} Kh5 {[%emt 0:00:00]} 57. Rb4 {[%emt 0:00:56]} Rf3+ {[%emt 0:00:00]} 58. Kg2 {[%emt 0:00:08]} Rf4 {[%emt 0:00:00]} 59. Rb5 {[%emt 0:00:11]} Kg4 {[%emt 0:00:00]} 60. Rb3 {[%emt 0:00:18]} Ne4 {[%emt 0:00:00]} 61. Re3 {[%emt 0:00:55]} Rf2+ {[%emt 0:00:00]} 62. Kg1 {[%emt 0:00:23]} Kf4 {[%emt 0:00:00]} 63. Rh3 {[%emt 0:00:51]} Rf3 {[%emt 0:00:00]} 64. Rh2 {[%emt 0:00:22]} Ng3 {[%emt 0:00:00]} 65. Ra2 {[%emt 0:00:37]} g4 {[%emt 0:00:00]} 66. Ra4+ {[%emt 0:00:12]} Ne4 {[%emt 0:00:00]} 67. Ra8 {[%emt 0:00:13]} Kg3 {[%emt 0:00:00]} 68. Ra2 {[%emt 0:00:19]} Nf2 {[%emt 0:00:35]} 69. Ra1 {[%emt 0:00:27]} h3 {[%emt 0:00:44]} 70. Kf1 {[%emt 0:01:49]} h2 0-1